Cogmind - Beta 11.2 @@@ ROGUE MODE // 2023.02.06 @ 05:15:41 Player: High Tyrol Result: Destroyed by P-60 Hacker with Shock Rifle Performance ------------- Evolutions (3) 1500 Regions Visited (8) 1600 Robots Destroyed (67) 335 Value Destroyed (1707) 1707 Prototype IDs (5) 100 Alien Tech Used (0) 0 Bonus (327) 327 TOTAL SCORE: 5569 Bonus ------- Follower Combat Kills 60 Aligned with FarCom 300 Friendly Fire -33 Cogmind --------- Core Integrity 0/700 Matter 10/300 Energy 90/100 System Corruption 31% Temperature Cool (0) Movement Rolling (115) Ox1 Location -7/Factory Parts ------- > --- POWER (1) -------- (None) > --- PROPULSION (6) --- Armored Huge Wheel > --- UTILITY (4) ------ Large Storage Unit Improved Medium Armor Plating > --- WEAPON (2) ------- Axe > --- INVENTORY (15) --- Micro Nuclear Core Gravmag System Cooled VTOL Module Faulty Cooled VTOL Module Medium Storage Unit Weight Redist. System Makeshift Trap Scanner Insulated Plating Heavy Particle Cannon Flak Cannon Improved Grenade Launcher Flail Axe Peak State ------------ > --- POWER ------------ Light Nuclear Core > --- PROPULSION ------- Titanium Leg Improved Carbon-fiber Leg Improved Carbon-fiber Leg Improved Carbon-fiber Leg Cesium-ion Thruster Cesium-ion Thruster > --- UTILITY ---------- Large Storage Unit Makeshift Trap Scanner Targeting Computer Cloak of Protection > --- WEAPON ----------- Flak Cannon Flail > --- INVENTORY -------- Advanced Treads Cesium-ion Thruster Cesium-ion Thruster Cesium-ion Thruster Makeshift Flight Unit Weight Redist. System Advanced Weight Redist. System Decoy Drone Bay Heavy Particle Cannon Flak Cannon Flak Cannon Improved Grenade Launcher [Rating: 49] Favorites ----------- Power Light Angular Momentum Engine Engine Light Angular Momentum Engine Power Core Light Nuclear Core Propulsion Advanced Treads Treads Advanced Treads Leg Improved Carbon-fiber Leg Wheel Armored Huge Wheel Flight Unit Cesium-ion Thruster Utility Large Storage Unit Device Weight Redist. System Storage Large Storage Unit Processor Targeting Computer Protection Improved Medium Armor Plating Weapon Flak Cannon Energy Gun Medium Laser Energy Cannon Heavy Particle Cannon Ballistic Gun Shotgun Ballistic Cannon Flak Cannon Impact Weapon Flail Slashing Weapon Axe Build | -11 -10 -10 -9 -9 -9 -8 -8 -7 ------- Run | Scr Mat Min Mat Min Exi Min Mat Fac Slots Evolved 6 | . . . 2 . . . 2 2 Power . | . . . . . . . . . Propulsion 4 | . . . . . . . 2 2 Utility 2 | . . . 2 . . . . . Weapon . | . . . . . . . . . Parts Attached 83 | 7 9 7 9 1 9 . 21 20 Power 7 | 1 2 2 1 . . . 1 . Engine 4 | 1 2 . 1 . . . . . Core 3 | . . 2 . . . . 1 . Reactor . | . . . . . . . . . Propulsion 33 | 2 4 2 2 . 1 . 10 12 Treads 5 | . . . 2 . 1 . 1 1 Leg 21 | 2 4 2 . . . . 9 4 Wheel 1 | . . . . . . . . 1 Hover . | . . . . . . . . . Flight 6 | . . . . . . . . 6 Utility 24 | 2 1 2 4 1 6 . 4 4 Device 17 | 1 . . 3 1 6 . 4 2 Storage 3 | 1 . 1 1 . . . . . Processor 1 | . . 1 . . . . . . Hackware . | . . . . . . . . . Protection 3 | . 1 . . . . . . 2 Artifact . | . . . . . . . . . Weapon 19 | 2 2 1 2 . 2 . 6 4 Energy Gun 3 | 2 . . . . . . . 1 Energy Cannon 3 | . . . . . 1 . 2 . Ballistic Gun 3 | . 1 1 . . . . 1 . Ballistic Cannon 6 | . 1 . 2 . 1 . 1 1 Launcher . | . . . . . . . . . Special Weapon . | . . . . . . . . . Impact Weapon 3 | . . . . . . . 2 1 Slashing Weapon 1 | . . . . . . . . 1 Piercing Weapon . | . . . . . . . . . Special Melee Weapon . | . . . . . . . . . Unidentified Prototypes 5 | . . . . . 4 . 1 . Parts Lost 18 | . . 1 1 . . . 1 15 Power 2 | . . . 1 . . . . 1 Propulsion 10 | . . . . . . . . 10 Utility 2 | . . . . . . . . 2 Weapon 4 | . . 1 . . . . 1 2 Highest Loss Streak 8 | . . 1 1 . . . 1 8 To Critical Strikes . | . . . . . . . . . Average Slot Usage (%) 89 | . 99 99 99 100 98 100 98 64 Engine 7 | . 14 4 8 11 11 11 8 2 Core 2 | . . 9 2 . . . . 1 Treads 8 | . . . 21 22 22 22 9 2 Leg 14 | . 27 28 . . . . 25 11 Flight 2 | . . . . . . . . 9 Device 12 | . 9 . 20 22 21 22 17 7 Storage 10 | . 14 14 12 11 11 11 9 7 Processor 6 | . . 6 11 11 11 11 9 1 Protection 2 | . 4 7 . . . . . 4 Energy Gun 5 | . 14 14 4 . . . . 1 Ballistic Gun 3 | . 12 13 . . . . . . Ballistic Cannon 9 | . 1 . 16 22 21 22 11 4 Impact Weapon 1 | . . . . . . . 2 4 Naked Turns . | . . . . . . . . . Heaviest Build 54 | 13 18 30 48 40 47 44 54 51 Greatest Support 72 | 20 26 25 50 50 50 50 72 71 Greatest Overweight (x) 9 | 1 . 1 1 . 1 . 2 9 Average Overweight (x) . | . . . . . . . . . Largest Inventory Capacity 15 | 8 8 15 15 15 15 15 15 15 Average Capacity 13 | 7 8 10 15 15 15 15 15 15 Most Carried 15 | 8 8 10 15 15 15 15 15 15 Average Carried 12 | 4 7 8 14 14 14 14 14 11 Final Capacity 15 | 8 8 15 15 15 15 15 15 15 Final Carried 15 | 8 8 10 15 15 15 15 15 13 Class Distribution -------------------- 99% | Mutant Dominant Class ---------------- Mutant | -10/Materials Mutant | -10/Mines Mutant | -9/Materials Mutant | -9/Mines Mutant | -9/Exiles Mutant | -8/Mines Mutant | -8/Materials Mutant | -7/Factory Resources | -11 -10 -10 -9 -9 -9 -8 -8 -7 ----------- Run | Scr Mat Min Mat Min Exi Min Mat Fac Matter Collected 1391 | 270 242 121 366 . . 236 90 66 Remotely . | . . . . . . . . . Salvage Created 1773 | 140 491 310 394 . . 176 90 172 Parts 100 | 9 26 20 22 . . 16 . 7 Haulers Intercepted 2 | . 1 . . . . . 1 . Recyclers Shooed 1 | 1 . . . . . . . . Parts Field Recycled . | . . . . . . . . . Retrieved Matter . | . . . . . . . . . Parts Self-Destructed . | . . . . . . . . . Prevented . | . . . . . . . . . Kills | -11 -10 -10 -9 -9 -9 -8 -8 -7 ------- Run | Scr Mat Min Mat Min Exi Min Mat Fac Combat Hostiles Destroyed 53 | . 15 12 11 . . 9 1 5 Melee 1 | . . . . . . . . 1 Guns 28 | . 15 12 1 . . . . . Cannons 21 | . . . 10 . . 9 1 1 Classes Destroyed 11 | 3 4 . 1 . . . 1 2 Worker 2 | 1 . . 1 . . . . . Tunneler 5 | 2 . . 1 . . 2 . . Hauler 2 | . 1 . . . . . 1 . Recycler 1 | 1 . . . . . . . . Operator 1 | . . . . . . . . 1 Watcher 3 | . 1 . . . . . 2 . Swarmer 22 | . 6 7 . . . 7 . 2 Grunt 25 | . 9 5 9 . . 2 . . Sentry 2 | . . . 2 . . . . . Hunter 1 | . . . . . . . 1 . Programmer 3 | . . . . . . . . 3 Best Kill Streak 5 | 2 5 3 3 . . 4 1 2 Combat Bots Only 4 | . 4 3 2 . . 3 1 2 Max Kills in Single Turn 2 | 1 2 2 1 . . 2 1 1 Gunslinging . | . . . . . . . . . Exploded . | . . . . . . . . . Melee 1 | . . . . . . . . 1 Uniques/NPCs Destroyed . | . . . . . . . . . Combat | -11 -10 -10 -9 -9 -9 -8 -8 -7 -------- Run | Scr Mat Min Mat Min Exi Min Mat Fac Damage Taken 3953 | . 506 179 335 . . 96 143 2694 Core 935 | . 86 68 12 . . 26 31 712 Absorbed by Shields . | . . . . . . . . . Core Remaining (%) 80 | 100 . 38 . . . 90 94 . Volleys Fired 136 | 11 39 19 33 . . 14 13 7 Largest 2 | 2 2 2 2 . . 2 2 1 Hottest 119 | 100 73 73 94 . . 83 119 50 Shots Fired 260 | 22 78 33 66 . . 28 26 7 Gun 143 | 22 78 33 9 . . . . 1 Cannon 117 | . . . 57 . . 28 26 6 Launcher . | . . . . . . . . . Special . | . . . . . . . . . Kinetic 161 | . 39 14 57 . . 28 17 6 Thermal 98 | 22 39 19 9 . . . 9 . Explosive . | . . . . . . . . . Electromagnetic 1 | . . . . . . . . 1 Robot Hit Streak 12 | 12 7 10 10 . . 12 7 4 Robot Miss Streak 7 | 3 5 2 7 . . 6 4 7 Penetration Max . | . . . . . . . . . Secondary Targets 1 | . 1 . . . . . . . Max Gunslinging Chain 1 | . 1 . . . . . . . Shots Hit Robots 192 | 16 49 24 48 . . 20 19 16 Core Hits 125 | 5 29 20 29 . . 18 17 7 Critical Kills 1 | . 1 . . . . . . . Critical Parts Destroyed 4 | . . . . . . . . 4 Critical Strikes 13 | . 1 5 1 . . 2 . 4 Burn 5 | . . 5 . . . . . . Destroy 1 | . 1 . . . . . . . Blast 3 | . . . 1 . . 2 . . Smash 4 | . . . . . . . . 4 Melee Attacks 131 | . . . . . . . 4 127 Impact 90 | . . . . . . . 4 86 Slashing 41 | . . . . . . . . 41 Piercing . | . . . . . . . . . Sneak Attacks 4 | . . . . . . . . 4 Combat Hostiles . | . . . . . . . . . Follow-up Attacks . | . . . . . . . . . Damage Inflicted 3820 | 198 726 361 850 . . 518 431 736 Guns 1351 | 198 721 355 77 . . . . . Cannons 1701 | . . . 746 . . 459 384 112 Explosions . | . . . . . . . . . Melee 597 | . . . . . . . 43 554 Ramming 171 | . 5 6 27 . . 59 4 70 Kinetic 2244 | . 497 175 746 . . 459 255 112 Thermal 808 | 198 224 180 77 . . . 129 . Explosive . | . . . . . . . . . Electromagnetic . | . . . . . . . . . Impact 303 | . . . . . . . 43 260 Slashing 294 | . . . . . . . . 294 Piercing . | . . . . . . . . . Highest Corruption 30 | . . . . . . . . 30 Average Corruption 18 | . . . . . . . . 18 Corruption Purged . | . . . . . . . . . Corruption Blocked . | . . . . . . . . . Effects 62 | . . . . . . . . 62 Message Errors 21 | . . . . . . . . 21 Matter Fused 5 | . . . . . . . . 5 Heat Flow Errors 9 | . . . . . . . . 9 Energy Discharges 12 | . . . . . . . . 12 Parts Rejected 1 | . . . . . . . . 1 Data Loss (minor) 7 | . . . . . . . . 7 Data Loss (major) 3 | . . . . . . . . 3 Alerts 2 | . . . . . . . . 2 Misdirections 2 | . . . . . . . . 2 Overload Shots . | . . . . . . . . . Overflow Damage 267 | . . . . . . 12 21 234 Projectiles 12 | . . . . . . 12 . . Explosions . | . . . . . . . . . Melee 255 | . . . . . . . 21 234 Knockbacks 39 | . . . 20 . . 9 6 4 Impact . | . . . . . . . . . Kinetic 38 | . . . 20 . . 8 6 4 Secondary 1 | . . . . . . 1 . . Self-Inflicted Damage 40 | . . . . . . . . 40 Shots . | . . . . . . . . . Rammed 25 | . . . 4 . . 5 1 15 Targets Rammed 32 | . 4 2 5 . . 5 1 15 Kicked 6 | . 4 2 . . . . . . Crushed 1 | . . . 1 . . . . . Highest Temperature 269 | 118 201 77 158 . . 108 180 269 Average Temperature 54 | 52 55 24 56 . . 35 55 94 Received Heat Transfer 810 | . 246 42 171 . . . . 351 Siege Activations . | . . . . . . . . . Robots Corrupted . | . . . . . . . . . Combat Hostiles . | . . . . . . . . . Parts Fried 5 | . . . . . . . 1 4 Impact Corruptions 10 | . . . . . . . 1 9 Robots Melted . | . . . . . . . . . Combat Hostiles . | . . . . . . . . . Parts Melted 3 | . . 3 . . . . . . Heat Transferred 2553 | 592 666 888 222 . . . 185 . Parts Sabotaged . | . . . . . . . . . Parts Stolen . | . . . . . . . . . Parts Stripped . | . . . . . . . . . Power Chain Reactions . | . . . . . . . . . Missiles Intercepted . | . . . . . . . . . Alert | -11 -10 -10 -9 -9 -9 -8 -8 -7 ------- Run | Scr Mat Min Mat Min Exi Min Mat Fac Peak Influence 343 | 20 343 327 218 26 . 186 142 137 Initial 75 | . 13 75 35 26 . . 72 13 Average 85 | 7 159 166 86 26 . 64 68 30 Maximum Alert Level 1 | . 1 1 1 . . . . . Low Security (%) 87 | 100 60 62 93 100 . 100 100 100 Level 1 12 | . 39 37 6 . . . . . Level 2 . | . . . . . . . . . Level 3 . | . . . . . . . . . Level 4 . | . . . . . . . . . Level 5 . | . . . . . . . . . High Security . | . . . . . . . . . Max Security . | . . . . . . . . . Squads Dispatched 22 | . 4 . 2 . . . 4 12 Investigation 5 | . 2 . . . . . 2 1 Extermination 4 | . . . . . . . . 4 Reinforcement 13 | . 2 . 2 . . . 2 7 Assault . | . . . . . . . . . Garrison . | . . . . . . . . . Intercept . | . . . . . . . . . Searches Triggered . | . . . . . . . . . Construction Impeded . | . . . . . . . . . Haulers Reinforced . | . . . . . . . . . Active Scanning Responses . | . . . . . . . . . Cargo Convoy Interrupts . | . . . . . . . . . Stealth | -11 -10 -10 -9 -9 -9 -8 -8 -7 --------- Run | Scr Mat Min Mat Min Exi Min Mat Fac Distress Signals 6 | . . . 4 1 . . 1 . Communications Jammed . | . . . . . . . . . Distress Signals . | . . . . . . . . . Times Spotted 85 | . 20 15 14 . . 11 11 14 Peak Tracking Total 4 | . 4 3 4 . . 4 3 4 Tactical Retreats 7 | . 1 2 . . . 1 . 3 Traps | -11 -10 -10 -9 -9 -9 -8 -8 -7 ------- Run | Scr Mat Min Mat Min Exi Min Mat Fac Traps Triggered 2 | . . . . . . . . 2 Indirectly . | . . . . . . . . . Trap Hack Attempts . | . . . . . . . . . Triggered . | . . . . . . . . . Disarmed . | . . . . . . . . . Reprogrammed . | . . . . . . . . . Reused . | . . . . . . . . . Traps Extracted . | . . . . . . . . . Installed . | . . . . . . . . . Triggered . | . . . . . . . . . Machines | -11 -10 -10 -9 -9 -9 -8 -8 -7 ---------- Run | Scr Mat Min Mat Min Exi Min Mat Fac Machines Disabled 5 | . . . . . . . 1 4 Max in Single Turn 1 | . . . . . . . 1 1 Machines Sabotaged . | . . . . . . . . . Garrisons Compromised . | . . . . . . . . . Overloaded Fab Kills . | . . . . . . . . . Hacking | -11 -10 -10 -9 -9 -9 -8 -8 -7 --------- Run | Scr Mat Min Mat Min Exi Min Mat Fac Machines Accessed 20 | . 5 1 4 1 . . 4 5 Terminals 13 | . 4 1 4 . . . 1 3 Fabricators . | . . . . . . . . . Repair Stations 1 | . . . . . . . . 1 Recycling Units 3 | . 1 . . . . . 2 . Scanalyzers . | . . . . . . . . . Garrison Access 2 | . . . . . . . 1 1 Total Hacks 54 | . 14 3 17 1 . . 8 11 Successful 25 | . 6 1 7 1 . . 5 5 Failed 28 | . 8 1 10 . . . 3 6 Catastrophic 1 | . . . . . . . . 1 Database Lockouts 1 | . . 1 . . . . . . Manual 45 | . 12 2 16 . 1 . 7 7 Terminals 39 | . 12 3 17 . . . 2 5 Fabricators . | . . . . . . . . . Repair Stations 3 | . . . . . . . . 3 Recycling Units 5 | . 2 . . . . . 3 . Scanalyzers . | . . . . . . . . . Garrison Access 6 | . . . . . . . 3 3 Terminal Hacks 12 | . 3 1 6 1 . . . 1 Robot Analysis 6 | . 1 1 4 . . . . . Open Door 1 | . . . . 1 . . . . Branch Access Points 1 | . . . 1 . . . . . Terminal Index 2 | . 1 . 1 . . . . . Maintenance Status 1 | . . . . . . . . 1 Zone Layout 1 | . 1 . . . . . . . Fabricator Hacks . | . . . . . . . . . Repair Station Hacks 2 | . . . . . . . . 2 Scan Component 1 | . . . . . . . . 1 Refit 1 | . . . . . . . . 1 Recycling Unit Hacks 2 | . 1 . . . . . 1 . Report Inventory 2 | . 1 . . . . . 1 . Scanalyzer . | . . . . . . . . . Garrison Access Hacks . | . . . . . . . . . Unauthorized Hacks 9 | . 2 . 1 . . . 4 2 Terminals 3 | . 1 . 1 . . . . 1 Botnet 1 | . . . . . . . . 1 Operators 2 | . 1 . 1 . . . . . Fabricators . | . . . . . . . . . Repair Stations . | . . . . . . . . . Recycling Units 3 | . 1 . . . . . 2 . Tunnel 3 | . 1 . . . . . 2 . Scanalyzers . | . . . . . . . . . Garrison Access 3 | . . . . . . . 2 1 Intercept 1 | . . . . . . . 1 . Watchers 2 | . . . . . . . 1 1 Data Cores Recovered . | . . . . . . . . . Used . | . . . . . . . . . Hacking Detections 16 | . 5 1 4 . . . 2 4 Full Trace Events 1 | . 1 . . . . . . . Feedback Events . | . . . . . . . . . Feedback Blocked . | . . . . . . . . . Robot Schematics Acquired . | . . . . . . . . . Robots Built . | . . . . . . . . . Authchips . | . . . . . . . . . Time . | . . . . . . . . . Total Robot Build Rating . | . . . . . . . . . Part Schematics Acquired . | . . . . . . . . . Parts Built . | . . . . . . . . . Authchips . | . . . . . . . . . Time . | . . . . . . . . . Total Part Build Rating . | . . . . . . . . . Parts Repaired . | . . . . . . . . . Time . | . . . . . . . . . Parts Recycled . | . . . . . . . . . Recycled Matter . | . . . . . . . . . Retrieved Matter . | . . . . . . . . . Retrieved Components . | . . . . . . . . . Parts Scanalyzed . | . . . . . . . . . Part Schematics Acquired . | . . . . . . . . . Parts Damaged . | . . . . . . . . . Bothacking | -11 -10 -10 -9 -9 -9 -8 -8 -7 ------------ Run | Scr Mat Min Mat Min Exi Min Mat Fac Used RIF Installer . | . . . . . . . . . Robots Hacked . | . . . . . . . . . Non-combat . | . . . . . . . . . Combat . | . . . . . . . . . Robot Hacks Applied . | . . . . . . . . . Relay Couplers Released . | . . . . . . . . . Fabnet Peak Effective % . | . . . . . . . . . Robots Rewired . | . . . . . . . . . Allies Hacked . | . . . . . . . . . Hacks Repelled . | . . . . . . . . . Allies | -11 -10 -10 -9 -9 -9 -8 -8 -7 -------- Run | Scr Mat Min Mat Min Exi Min Mat Fac Total Allies 5 | . . 2 . 3 . . . . Largest Group 3 | . . 2 1 3 3 2 . . Highest-Rated Group 52 | . . 52 21 40 40 23 . . Highest-Rated Ally 31 | . . 31 21 16 16 16 . . Total Orders 13 | . . . . . . . 4 9 STAY 2 | . . . . . . . . 2 EXPLORE 11 | . . . . . . . 4 7 Ally Attacks 26 | . . 13 . . . 13 . . Total Damage 352 | . . 229 . . . 123 . . Kills 3 | . . 2 . . . 1 . . Allies Corrupted 1 | . . . . . . . . 1 Allies Melted 1 | . . . . . . 1 . . Intel | -11 -10 -10 -9 -9 -9 -8 -8 -7 ------- Run | Scr Mat Min Mat Min Exi Min Mat Fac Robot Analysis Total 6 | . 1 1 4 . . . . . Derelict Logs Recovered 3 | . . 3 . . . . . . Drone Launches 16 | . . . . . . . 4 12 Drone Recoveries . | . . . . . . . . . Exploration | -11 -10 -10 -9 -9 -9 -8 -8 -7 ------------- Run | Scr Mat Min Mat Min Exi Min Mat Fac Turns Passed 6911 | 127 816 1093 902 127 436 706 867 1837 Spaces Moved 3898 | 65 516 731 450 86 280 449 512 809 Core 19 | 6 . . . . . . . 13 Treads 1423 | . . . 430 86 280 449 178 . Legs 2204 | 59 516 731 20 . . . 334 544 Wheels 1 | . . . . . . . . 1 Hover . | . . . . . . . . . Flight 251 | . . . . . . . . 251 Fastest Speed 23 | 50 120 120 120 145 145 145 120 23 Average Speed 141 | 117 120 137 152 145 145 145 129 158 Slowest Speed 500 | 190 120 190 225 145 225 145 260 500 Overloaded Moves . | . . . . . . . . . Propulsion Burnouts . | . . . . . . . . . Robots Hopped . | . . . . . . . . . Cave-ins Triggered 4 | . . . . . . . . 4 Exploration Rate (%) 51 | 4 65 99 49 20 60 62 61 39 Regions Visited 8 Branch Regions 4 Pre-discovered Areas 4 | . 1 1 . . . . 2 . Known Exits Taken 2 | . . . 1 . . 1 . . Unknown Exits Taken 6 | 1 1 1 . 1 1 . 1 . Scrap Searched 4 | . . 3 . . . 1 . . Spaces Dug 79 | . . . . . . . 2 77 Terrain Destroyed 82 | . . . . . . 1 4 77 Melee 79 | . . . . . . . 2 77 Projectile 3 | . . . . . . 1 2 . AOE . | . . . . . . . . . Terrain Rammed 1 | . . . . . . . . 1 Walls Destroyed . | . . . . . . . . . Machines Disabled . | . . . . . . . . . Actions | -11 -10 -10 -9 -9 -9 -8 -8 -7 --------- Run | Scr Mat Min Mat Min Exi Min Mat Fac Total 4823 | 90 640 788 600 89 308 474 688 1146 Wait 383 | . 44 19 84 . 11 5 100 120 Move 3887 | 64 515 730 449 85 279 448 511 806 Hop . | . . . . . . . . . Pick Up 69 | 8 10 4 12 1 1 1 14 18 Fast Attach 29 | 7 4 2 3 . 6 . 7 . Attach 24 | . . 1 3 1 1 . 6 12 Detach 6 | . 1 . 1 . 1 . 3 . Swap 31 | . 5 4 3 . 2 . 9 8 Drop 73 | . 18 7 7 2 7 1 20 11 Fire 136 | 11 39 19 33 . . 14 13 7 Melee 131 | . . . . . . . 4 127 Ram 16 | . . . . . . . . 16 Kick 6 | . 4 2 . . . . . . Crush 11 | . . . 5 . . 5 1 . Escape Stasis 21 | . . . . . . . . 21 Rewire . | . . . . . . . . . Trap . | . . . . . . . . . Miscellaneous . | . . . . . . . . . Route ------- -11/Scrapyard -10/Materials (discovered 2 exits: *Mat / *Min) -10/Mines (discovered 2 exits: *Mat x2) -9/Materials (discovered 4 exits: *Mat x2 / *Min x2) -9/Mines -9/Exiles -8/Mines -8/Materials (discovered 4 exits: *Fac x2 / [*Sto x2]) -7/Factory (discovered 1 exit: [*Fac]) History --------- Turn | Location | Event 22 | -11/Scrapyard | Discovered new exit (range 15) 128 | -11/Scrapyard | Entered Materials 307 | -10/Materials | Build established: Mutant 336 | -10/Materials | Discovered new exit (range 16) 698 | -10/Materials | Discovered new exit (range 6) 944 | -10/Materials | Entered Mines 1445 | -10/Mines | Core integrity fell below 50% 1514 | -10/Mines | Learned 4 Materials zone layouts 1534 | -10/Mines | Discovered new exit (range 4) 1630 | -10/Mines | Learned Materials non-interactive machine intel 1633 | -10/Mines | Learned location of Zion (-7) 1645 | -10/Mines | Central database locked down 1657 | -10/Mines | Discovered new exit (range 11) 2037 | -10/Mines | Entered Materials 2037 | -9/Materials | Accompanied by 1 ally 2037 | -9/Materials | Evolved 2 slots: Utility x2 2038 | -9/Materials | Identified exit to Materials 2039 | -9/Materials | Loaded intel: 35 non-interactive machine locations 2128 | -9/Materials | Discovered new exit (range 15) 2154 | -9/Materials | Met 8R-AWN 2398 | -9/Materials | Identified exit to Mines 2480 | -9/Materials | Discovered exit to Materials (range 14) 2939 | -9/Materials | Entered Mines 2940 | -9/Mines | Assembled infested the area 2941 | -9/Mines | Followed 8R-AWN into the Mines 2964 | -9/Mines | Assisted by bots powering up and referring to "LRC-V3" 3007 | -9/Mines | Found the Drone Emporium 3018 | -9/Mines | Found Prototype Device 3057 | -9/Mines | Discovered new exit (range 5) 3066 | -9/Mines | Entered Exiles 3066 | -9/Exiles | Accompanied by 3 allies 3103 | -9/Exiles | Welcomed by 8R-AWN 3127 | -9/Exiles | Met EX-HEX 3187 | -9/Exiles | Met EX-BIN 3214 | -9/Exiles | Aligned with FarCom system 3216 | -9/Exiles | Given EX-Vault access code 3259 | -9/Exiles | Opened EX-Vault 3266 | -9/Exiles | Identified Decoy Drone Bay 3268 | -9/Exiles | Found Prototype Device 3268 | -9/Exiles | Identified Cloak of Protection 3275 | -9/Exiles | Found Prototype Energy Cannon 3275 | -9/Exiles | Identified Latent Energy Streamer 3279 | -9/Exiles | Found Prototype Device 3279 | -9/Exiles | Identified PSU Rigger 3334 | -9/Exiles | Warned to stay clear of 0b10 Research branches 3383 | -9/Exiles | Met EX-DEC 3449 | -9/Exiles | Discovered new exit (range 14) 3502 | -9/Exiles | Left Exiles lab with Cloak of Protection 3502 | -9/Exiles | Entered Mines 3502 | -8/Mines | Accompanied by 3 allies 4193 | -8/Mines | Discovered exit to Materials (range 8) 4208 | -8/Mines | Entered Materials 4208 | -8/Materials | Evolved 2 slots: Propulsion x2 4931 | -8/Materials | Discovered new exit (range 45) 4932 | -8/Materials | Discovered new exit (range 62) 4939 | -8/Materials | Discovered new exit (range 68) 4946 | -8/Materials | Discovered new exit (range 77) 5075 | -8/Materials | Entered Factory 5075 | -7/Factory | Evolved 2 slots: Propulsion x2 5462 | -7/Factory | System corruption reached 10% 5538 | -7/Factory | Lost 8 parts (1p5n1u1w) 5583 | -7/Factory | Core integrity fell below 50% 5609 | -7/Factory | Crushed by falling debris 5622 | -7/Factory | Crushed by falling debris 6349 | -7/Factory | Discovered new exit (range 94) 6849 | -7/Factory | Crushed by falling debris 6849 | -7/Factory | Core integrity fell below 20% 6865 | -7/Factory | Crushed by falling debris 6866 | -7/Factory | System corruption reached 30% 6896 | -7/Factory | Lost 3 parts (2n1w) 6912 | -7/Factory | Destroyed by P-60 Hacker with Shock Rifle Last Messages --------------- 06825_ ALERT: Rogue bot located, Programmers report to Factory Zone 6N. 06832_ U-05 Engineer builds a Wall. 06848_ PC>NHTE1|V2DMA6IYGQBHT6EVQO MR 06849_ The unstable cave ceiling collapses. 06849_ Crushed by falling debris. 06849_ Imp. Carbon-fiber Leg destroyed. 06849_ System corrupted by crushing effect (+3). 06849_ Shock Rifle destroyed. 06849_ System corrupted by crushing effect (+3). 06850_ U-05 Engineer builds a Wall. 06863_ System corrupted: Component data lost. 06865_ The unstable cave ceiling collapses. 06865_ Crushed by falling debris. 06865_ Titanium Leg destroyed. 06865_ System corrupted by crushing effect (+2). 06892_ U-05 Engineer builds a Wall. 06893_ Y2:N3X4Q5<7F, O#U4A5IGPN,HBBB1BMJ/ 06908_ Med. Treads destroyed. 06909_ JT,&<#PRBV:B=382XY5#XDTKF88YCM=RVHWY Map ----- +----------------------------------------------------+ | # """""" ### #??????????????+ | | # """""" ###| ###????????????# | | # """""" # = % #????????????# | | # """""" # % #????????????# | | # # #????????????# | | # """""" # #????????????# | | # """"" + H #????????????# | | # """"" # #????????????# | | # """""" # # ??????????# | | # # # ????????# | | # # # ??????# | | # ### ### ????# | | # ### #?# ??# | | # ## #?# # | | #############T #?# ! + | | ??###????# ### #?# # | | ?????????# ### %%#?# ??# | | ?????????##### ! ################ | | ?????????### """ | | ?????????# # "Y" | | ?????????# # < " " | | ?????????# # | | ?????????# # | | ?????????######+############ """ | | ?????????# ku #????# """ | | ?????????# @ p #????# """ | | ?????????# #????# | | ?????????# #????# | | ?????????# #????# | | ?????????# ] #????# = | | ?????????# ! #????# = | | ?????????# #????# = | | ?????????# #????# | | ?????????# #????# | | ?????????# #????# | | ?????????# #????# """ | | ?????????##############????+ """ | | ???????????????????????????### """ | | ?????????????????????????????# ?? | | ?????????????????????????????# ?? | | ??????????????????????????????? ?? | | ????????????????????????????????? ?? | | ?????????????????????????????????????? | | ?????????????????????????????????????? | | ?????????????????????????????????????? | | ?????????????????????????????????????? | | ?????????????????????????????????????? | | ?????????????????????????????????????? | | ?????????????????????????????????????? | | ?????????????????????????????????????? | +----------------------------------------------------+ Best States ------------- Heat Dissipation 34 Energy Generation 18 Energy Capacity 265 Matter Stores 300 Matter Capacity 300 Sight Range 16 Robot Scan Range 14 Terrain Scan Range 16 Terrain Scan Density 10 Cloak Strength 5 Additional Mass Support 9 Armor Coverage 225 Utility Shielding 33 Evasion (%) 55 Targeting Accuracy 5 Recoil Reduction 3 Item Schematics ----------------- None Robot Schematics ------------------ None Fabricated ------------ Nothing Alien Tech Used ----------------- None Achievements -------------- Can't Catch Me Challenges ------------ None Game ------ Seed easy10 Manual? 1 Play Time 01:44:33 Cumulative 31.9 hours Start 2023.02.06 @ 03:25:33 End 2023.02.06 @ 05:15:41 Sessions 1 Manual Loads 0 Difficulty Rogue Special Mode None Game No. 43 Rogue 43 Adventurer 0 Explorer 0 Win Type - Total 0 Types 0/0/0/0/0/0/0/0/0 Lore% 24 Gallery% 22 Achievement% 22 Wizard Run 0 Options --------- ASCII 0 Keyboard 0 Movement Mouse Keybinds 0 Fullscreen 1 Font 24/Smallcaps Map View 64x52 Tactical HUD 1 Map Filters NONE Filters NONE Steam 1 RUN: 5368c7bf-d4c4-4b91-9525-62e2856283b3